Cogmind - Beta 15 @@@ ROGUE MODE // 2025.05.16 @ 22:26:16 Player: Natsuram Result: Destroyed by VT-TWM(R) with Subdweller Laser Performance ------------- Evolutions (0) 0 Regions Visited (2) 400 Robots Destroyed (33) 165 Value Destroyed (843) 843 Prototype IDs (0) 0 Alien Tech Used (0) 0 Bonus (0) 0 TOTAL SCORE: 1408 Bonus ------- None Cogmind --------- Core Integrity 0/250 Matter 288/300 Energy 154/200 System Corruption 1% Temperature Cool (6) Movement Core (550) Ox10 Location -10/Subcaves Parts ------- > --- POWER (1) -------- Subdweller Power Source > --- PROPULSION (2) --- (None) > --- UTILITY (2) ------ Heat Sink Medium Storage Unit > --- WEAPON (2) ------- Subdweller Beam Cannon Subdweller Beam Cannon > --- INVENTORY (10) --- Ion Engine Ion Engine Light Ion Engine Aluminum Leg Aluminum Leg Aluminum Leg Aluminum Leg Core Shielding Medium Laser Peak State ------------ > --- POWER ------------ Subdweller Power Source > --- PROPULSION ------- Aluminum Leg Aluminum Leg > --- UTILITY ---------- Heat Sink Medium Storage Unit > --- WEAPON ----------- Subdweller Beam Cannon Light Cannon > --- INVENTORY -------- Ion Engine Ion Engine Light Ion Engine Aluminum Leg Aluminum Leg Aluminum Leg Aluminum Leg Core Shielding Medium Laser Subdweller Beam Cannon [Rating: 10] Favorites ----------- Power Ion Engine Engine Ion Engine Propulsion Aluminum Leg Leg Aluminum Leg Utility Heat Sink Device Heat Sink Storage Medium Storage Unit Weapon Light Cannon Energy Gun Medium Laser Energy Cannon Subdweller Beam Cannon Ballistic Gun Light Assault Rifle Ballistic Cannon Light Cannon Build | -11 -10 -10 ------- Run | Yrd Mat Sub Slots Evolved . | . . . Power . | . . . Propulsion . | . . . Utility . | . . . Weapon . | . . . Parts Attached 31 | 7 21 3 Power 6 | 2 3 1 Engine 6 | 2 3 1 Core . | . . . Reactor . | . . . Propulsion 12 | 2 10 . Treads . | . . . Leg 12 | 2 10 . Wheel . | . . . Hover . | . . . Flight . | . . . Utility 5 | 1 4 . Device 3 | . 3 . Storage 2 | 1 1 . Processor . | . . . Hackware . | . . . Protection . | . . . Artifact . | . . . Weapon 8 | 2 4 2 Energy Gun 2 | 1 1 . Energy Cannon 2 | . . 2 Ballistic Gun 2 | 1 1 . Ballistic Cannon 2 | . 2 . Launcher . | . . . Special Weapon . | . . . Impact Weapon . | . . . Slashing Weapon . | . . . Piercing Weapon . | . . . Special Melee Weapon . | . . . Unidentified Prototypes . | . . . Parts Lost 6 | . 3 3 Power . | . . . Propulsion 2 | . . 2 Utility . | . . . Weapon 4 | . 3 1 Highest Loss Streak 3 | . 1 3 To Critical Strikes . | . . . Average Backups 8 | 1 7 9 Power 2 | . 1 2 Propulsion 2 | . 2 4 Utility 1 | . 2 1 Weapon 1 | . 1 . Tool/Special . | . . . Unused Backups 7 | . 2 5 Power . | . . . Propulsion 3 | . . 3 Utility 4 | . 2 2 Weapon . | . . . Tool/Special . | . . . Average Slot Usage (%) 98 | . 97 99 Engine 14 | . 14 14 Leg 27 | . 28 27 Device 12 | . 12 14 Storage 14 | . 14 14 Energy Gun 9 | . 8 11 Energy Cannon 1 | . . 2 Ballistic Gun 5 | . 8 . Ballistic Cannon 11 | . 10 14 Peak Build Rating 10 | 6 8 10 Average Rating 7 | 4 7 8 On Entrance 4 | . 6 7 Naked Turns . | . . . Heaviest Build 27 | 13 22 27 Greatest Support 20 | 20 20 20 Greatest Overweight (x) 2 | 1 1 2 Average Overweight (x) . | . . 1 Largest Inventory Capacity 10 | 8 10 10 Average Capacity 9 | 7 9 10 Most Carried 10 | 2 10 10 Average Carried 8 | 1 7 9 Final Capacity 10 | 8 10 10 Final Carried 9 | 2 9 9 Class Distribution -------------------- 74% | Scavenger-Mutant 25% | Mutant Dominant Class ---------------- Scavenger-Mutant | -10/Materials Scavenger-Mutant | -10/Subcaves Resources | -11 -10 -10 ----------- Run | Yrd Mat Sub Matter Collected 822 | 47 603 172 Remotely . | . . . Salvage Created 899 | 77 711 111 Parts 66 | 3 56 7 Haulers Intercepted . | . . . Recyclers Shooed 1 | . 1 . Parts Field Recycled . | . . . Retrieved Matter . | . . . Parts Self-Destructed 23 | . . 23 Prevented . | . . . Kills | -11 -10 -10 ------- Run | Yrd Mat Sub Combat Hostiles Destroyed 27 | . 23 4 Guns 10 | . 10 . Cannons 17 | . 13 4 Classes Destroyed 9 | 1 6 2 Worker 1 | . 1 . Builder 1 | . 1 . Tunneler 1 | . 1 . Recycler 1 | 1 . . Watcher 2 | . 2 . Swarmer 8 | . 7 1 Grunt 16 | . 16 . Sentry 1 | . . 1 Subdweller 2 | . . 2 Best Kill Streak 6 | 1 6 2 Combat Bots Only 5 | . 5 2 Max Kills in Single Turn 2 | 1 2 1 Gunslinging 1 | . 1 . Exploded . | . . . Melee . | . . . Uniques/NPCs Destroyed . | . . . Combat | -11 -10 -10 -------- Run | Yrd Mat Sub Hostile Shots Fired 201 | . 165 36 Missed 67 | . 56 11 Hits 134 | . 109 25 Projectile 134 | . 109 25 Critical Strikes 1 | . . 1 Damage Taken 1630 | . 1067 563 Core 254 | . 147 107 Absorbed by Shields . | . . . Core Remaining (%) 100 | 100 . . Volleys Fired 103 | 3 81 19 Largest 2 | 2 2 2 Hottest 160 | 70 80 160 Shots Fired 189 | 6 154 29 Gun 107 | 6 97 4 Cannon 82 | . 57 25 Launcher . | . . . Special . | . . . Kinetic 131 | 3 110 18 Thermal 58 | 3 44 11 Explosive . | . . . Electromagnetic . | . . . Robot Hit Streak 11 | 2 11 5 Robot Miss Streak 5 | 1 5 2 Penetration Max . | . . . Secondary Targets 3 | . 3 . Max Gunslinging Chain 1 | . 1 . Shots Hit Robots 98 | 3 75 20 Core Hits 50 | 2 41 7 Critical Kills . | . . . Critical Parts Destroyed 1 | . 1 . Critical Strikes 8 | . 7 1 Burn 3 | . 3 . Destroy 1 | . 1 . Blast 4 | . 3 1 Melee Attacks . | . . . Impact . | . . . Slashing . | . . . Piercing . | . . . Sneak Attacks . | . . . Combat Hostiles . | . . . Follow-up Attacks . | . . . Damage Inflicted 1570 | 29 1115 426 Guns 617 | 29 561 27 Cannons 927 | . 528 399 Explosions . | . . . Melee . | . . . Ramming 26 | . 26 . Kinetic 1079 | 16 812 251 Thermal 465 | 13 277 175 Explosive . | . . . Electromagnetic . | . . . Impact . | . . . Slashing . | . . . Piercing . | . . . Highest Corruption 1 | . 1 1 Average Corruption 1 | . 1 1 Corruption Purged . | . . . Corruption Blocked . | . . . Effects 10 | . 3 7 Message Errors 1 | . . 1 Matter Fused 3 | . 1 2 Heat Flow Errors 1 | . . 1 Energy Discharges 2 | . 1 1 Data Loss (minor) 1 | . 1 . Alerts 2 | . . 2 Overload Shots . | . . . Overflow Damage . | . . . Projectiles . | . . . Explosions . | . . . Melee . | . . . Knockbacks 5 | . 5 . Impact . | . . . Kinetic 5 | . 5 . Secondary . | . . . Self-Inflicted Damage . | . . . Shots . | . . . Rammed . | . . . Targets Rammed 8 | 1 7 . Kicked 8 | 1 7 . Crushed . | . . . Highest Temperature 274 | 70 274 173 Average Temperature 70 | 34 72 100 Received Heat Transfer 465 | . 387 78 Effects 1 | . 1 . Energy Bleed 1 | . 1 . Siege Activations . | . . . Martial Activations . | . . . Shielding Activations . | . . . Robots Disrupted . | . . . Combat Hostiles . | . . . Robots Corrupted . | . . . Combat Hostiles . | . . . Parts Fried . | . . . Impact Corruptions . | . . . Robots Melted . | . . . Combat Hostiles . | . . . Parts Melted 1 | . . 1 Heat Transferred 1332 | 37 1036 259 Parts Sabotaged . | . . . Parts Stolen . | . . . Parts Stripped . | . . . Power Chain Reactions . | . . . Alert | -11 -10 -10 ------- Run | Yrd Mat Sub Maximum Alert Level 1 | . 1 . Low Security (%) 88 | 100 87 . Level 1 11 | . 12 . Level 2 . | . . . Level 3 . | . . . Level 4 . | . . . Level 5 . | . . . High Security . | . . . Max Security . | . . . Peak Influence 273 | 5 273 . Initial 3 | . 3 . Average 92 | . 99 . Influence Increases 696 | 5 651 40 Destroy 0b10 Robot/C 500 | . 460 40 Destroy 0b10 Robot/NC 30 | 5 25 . Destroy Leader 74 | . 74 . Disable Machine 45 | . 45 . Destroy Structure 2 | . 2 . Lose Combat Pursuer 45 | . 45 . Influence Decreases 696 | . 413 283 Entered New Map 120 | . 2 118 Time Decay 546 | . 381 165 Lost Part 30 | . 30 . Squads Dispatched 6 | . 6 . Investigation 4 | . 4 . Extermination . | . . . Reinforcement 2 | . 2 . Assault . | . . . Garrison . | . . . Intercept . | . . . Searches Triggered . | . . . Construction Impeded . | . . . Haulers Reinforced . | . . . Active Scanning Responses . | . . . Cargo Convoy Interrupts . | . . . Stealth | -11 -10 -10 --------- Run | Yrd Mat Sub Distress Signals 1 | . 1 . Communications Jammed . | . . . Distress Signals . | . . . Times Spotted 39 | . 34 5 Peak Tracking Total 6 | . 6 2 Tactical Retreats 3 | . 3 . Traps | -11 -10 -10 ------- Run | Yrd Mat Sub Traps Triggered 3 | . 2 1 Indirectly . | . . . Trap Hack Attempts . | . . . Triggered . | . . . Disarmed . | . . . Reprogrammed . | . . . Reused . | . . . Traps Extracted . | . . . Installed . | . . . Triggered . | . . . Machines | -11 -10 -10 ---------- Run | Yrd Mat Sub Machines Disabled 3 | . 3 . Max in Single Turn 1 | . 1 . Machines Repaired . | . . . Machines Dismantled . | . . . Machines Sabotaged . | . . . Overloaded Fab Kills . | . . . Hacking | -11 -10 -10 --------- Run | Yrd Mat Sub Machines Accessed 7 | . 7 . Terminals 5 | . 5 . Fabricators . | . . . Repair Stations . | . . . Recycling Units 2 | . 2 . Scanalyzers . | . . . Garrison Access . | . . . Total Hacks 24 | . 24 . Successful 6 | . 6 . Failed 18 | . 18 . Catastrophic 5 | . 5 . Database Lockouts . | . . . Manual 14 | . 14 . Terminals 20 | . 20 . Fabricators . | . . . Repair Stations . | . . . Recycling Units 4 | . 4 . Scanalyzers . | . . . Garrison Access . | . . . Terminal Hacks 3 | . 3 . Record 1 | . 1 . Robot Analysis 1 | . 1 . Level Access Points 1 | . 1 . Fabricator Hacks . | . . . Repair Station Hacks . | . . . Recycling Unit Hacks 3 | . 3 . Process 1 | . 1 . Report Inventory 2 | . 2 . Scanalyzer . | . . . Garrison Access Hacks . | . . . Unauthorized Hacks . | . . . Terminals . | . . . Fabricators . | . . . Repair Stations . | . . . Recycling Units . | . . . Scanalyzers . | . . . Garrison Access . | . . . Data Cores Recovered . | . . . Used . | . . . Hacking Detections 6 | . 6 . Full Trace Events 6 | . 6 . Feedback Events 1 | . 1 . Corruption 1 | . 1 . Feedback Blocked . | . . . Robot Schematics Acquired . | . . . Robots Built . | . . . Authchips . | . . . Time . | . . . Total Robot Build Rating . | . . . Part Schematics Acquired . | . . . Parts Built . | . . . Authchips . | . . . Time . | . . . Total Part Build Rating . | . . . Parts Repaired . | . . . Time . | . . . Parts Recycled . | . . . Recycled Matter 72 | . 72 . Retrieved Matter . | . . . Retrieved Components . | . . . Parts Scanalyzed . | . . . Part Schematics Acquired . | . . . Parts Damaged . | . . . Bothacking | -11 -10 -10 ------------ Run | Yrd Mat Sub Used RIF Installer . | . . . Robots Hacked . | . . . Non-combat . | . . . Combat . | . . . Robot Hacks Applied . | . . . Relay Couplers Released . | . . . Fabnet Peak Effective % . | . . . Robots Rewired . | . . . Allies Hacked . | . . . Hacks Repelled . | . . . Allies | -11 -10 -10 -------- Run | Yrd Mat Sub Total Allies . | . . . Largest Group . | . . . Highest-Rated Group . | . . . Highest-Rated Ally . | . . . Total Orders . | . . . Ally Attacks . | . . . Total Damage . | . . . Kills . | . . . Allies Corrupted . | . . . Allies Melted . | . . . Intel | -11 -10 -10 ------- Run | Yrd Mat Sub Active Infowar (turns) . | . . . Robot Analysis Total 1 | . 1 . Derelict Logs Recovered . | . . . Drone Launches . | . . . Drone Recoveries . | . . . Exploration | -11 -10 -10 ------------- Run | Yrd Mat Sub Turns Passed 1687 | 69 950 668 Spaces Moved 838 | 39 479 320 Core 9 | 9 . . Treads . | . . . Legs 829 | 30 479 320 Wheels . | . . . Hover . | . . . Flight . | . . . Fastest Speed 50 | 50 120 190 Average Speed 158 | 121 139 191 Slowest Speed 260 | 190 190 260 Overloaded Moves . | . . . Propulsion Burnouts . | . . . Robots Hopped . | . . . Potential Cave-ins . | . . . Cave-ins Triggered . | . . . Exploration Rate (%) 38 | 4 82 30 Regions Visited 2 Branch Regions 1 Pre-discovered Areas . | . . . Known Exits Taken . | . . . Unknown Exits Taken 2 | 1 1 . Scrap Searched 5 | . . 5 Spaces Dug . | . . . Terrain Destroyed . | . . . Melee . | . . . Projectile . | . . . AOE . | . . . Terrain Rammed . | . . . Walls Destroyed . | . . . Machines Disabled . | . . . Actions | -11 -10 -10 --------- Run | Yrd Mat Sub Total 1014 | 50 618 346 Wait 6 | . 6 . Move 836 | 38 478 320 Hop . | . . . Pick Up 11 | 1 9 1 Fast Attach 8 | 6 1 1 Attach 4 | . 3 1 Detach 1 | . . 1 Swap 19 | 1 17 1 Drop 18 | . 16 2 Fire 103 | 3 81 19 Melee . | . . . Ram . | . . . Kick 8 | 1 7 . Crush . | . . . Escape Stasis . | . . . Rewire . | . . . Trap . | . . . Miscellaneous . | . . . Route ------- -11/Scrapyard -10/Materials (discovered 4 exits: *Mat x3 / [*Sub]) -10/Subcaves History --------- Turn | Location | Event 6 | -11/Scrapyard | Discovered new exit (range 13) 70 | -11/Scrapyard | Entered Materials 318 | -10/Materials | Discovered new exit (range 4) 401 | -10/Materials | Discovered new exit (range 11) 525 | -10/Materials | Build established: Scavenger-Mutant 592 | -10/Materials | Identified exit to Materials 788 | -10/Materials | Core integrity fell below 50% 1001 | -10/Materials | Discovered new exit (range 12) 1020 | -10/Materials | Entered Subcaves 1128 | -10/Subcaves | Disturbed a concealed Subdweller 1542 | -10/Subcaves | Shifting Twisted Machinery released Sub. Beam Cannon 1655 | -10/Subcaves | Core integrity fell below 20% 1688 | -10/Subcaves | Destroyed by VT-TWM(R) with Subdweller Laser Last Messages --------------- 01479_ Y-45 Defender destroyed. 01486_ Beam Rifle fries itself beyond repair. 01487_ Lgt. Treads fries itself beyond repair. 01504_ System corrupted: IFF burst signal emitted. 01507_ Acquired 32 matter. 01509_ Acquired 10 matter. 01511_ Acquired 2 matter. 01515_ Acquired 8 matter. Sub. Beam Cannon falls loose from the Twisted Machinery. 01559_ Acquired Sub. Beam Cannon. 01590_ System corrupted: IFF burst signal emitted. 01648_ Acquired 11 matter. 01656_ Aluminum Leg destroyed. 01662_ Acquired 4 matter. 01686_ Lgt. Cannon destroyed. 01688_ Aluminum Leg destroyed. 01688_ Destroyed Scrap Shield. Map ----- +----------------------------------------------------+ | ???????????????????????????????????????## # | | ???????????????????????????????????????# ## | | ???????????????????????????????????????# ## | | ???????????????????????????????????#???# # | | ???????????????????????????????????# #### ## # | | ???????????????????????????????????# ## #?### | | ???????????????????????????????# ## ###?? | | ???????????????????????????????# #?? | | ???????????????????????????????## ### | | ????????????????????????????????## # | | ?????????????????????????????????## | | ????????????????????????#?????????### ### | | ???????????????????????? ###????????## ??# # | | ???????????????????????? ##????????# ?## ### | | ???????????????????????? ###?????## ### #?? | | ???????????? ? #????????# ####??# ?# #?? | | ????????????% %#??????## # ### #### #?? | | ???????????? ?????## ##?? | | ????????????? ????# ##?? | | ?????????????# ????# ??# ##? | | ?????????????# ????# #???## #? | | ?????????????# ???## ######## ## | | ?????????????# ???#% # # ## ## # | | ??????????#### ??## R ### # | | ?????????## ??# R ## # | | ?????????# ### ##@ # # # # | | ?????????# ## ## ########### # | | ?????????# % ####???????## %# | | ?????????# ##?????????# # | | ?????????## #????????# # | | ??????????##### #????????# # # | | ??????????????# #???????## ## ## ## | | ??????????????# #????????# ### ## ## | | ??????????????## "##????????## ### # | | ???????????????# ## ##??????????###?# # ## | | ??????????????? ?## "#?????########??## ## ## | | ??????????????# ??# "?????# """ ##??## ## # | | ??????????????# ??## "????# """"" ######## | | ?????????????? ???? "????# """ #?# #### | | ?????????????? ???? "???????#" ### ## | | ?????????????# # #???? "???#"### # | | ?????????????####?????? #???""""" ## | | ??????????????????????? #???""""" ####? | | ????????????????????????????#"""" ## #???? | | ????????????????????????????""""" #### #???? | | ?????????????????????????????""""## ##??# ##???? | | ?????????????????????????????"""#?## #???####????? | | ?????????????????????????????###???###???????????? | | ?????????????????????????????????????????????????? | | ?????????????????????????????????????????????????? | +----------------------------------------------------+ Best States ------------- Heat Dissipation 35 Energy Generation 15 Energy Capacity 250 Matter Stores 300 Matter Capacity 300 Sight Range 16 Terrain Scan Density 10 Evasion (%) 55 Item Schematics ----------------- None Robot Schematics ------------------ None Fabricated ------------ Nothing Repaired ---------- Nothing Alien Tech Used ----------------- None Achievements -------------- None Challenges ------------ None Game ------ Seed VisualCloakingBotcube Manual? 0 Play Time 00:20:10 Cumulative 5.0 hours Start 2025.05.16 @ 22:06:51 End 2025.05.16 @ 22:26:16 Sessions 1 Manual Loads 0 Difficulty Rogue Special Mode None Game No. 7 Rogue 6 Adventurer 1 Explorer 0 Win Type - Total 0 Types 0/0/0/0/0/0/0/0/0/0 Lore% 5 Gallery% 6 Achievement% 9 Wizard Run 0 Options --------- Layout 1 ASCII 0 Keyboard 1 Movement Numpad Keybinds 0 Fullscreen 1 Font 24/Smallcaps Map View 50x35 Zoom Use 0% Tactical HUD 1 Map Filters NONE Filters NONE Steam 1 RUN: 64e65d87-b7e2-43ad-839b-2d9e558c2604